Workbook

Sheet 水平運動
A1: 粘性抵抗と慣性抵抗を受ける物体の水平運動
A2: mv'＝－γv－kv^2 | E2: 粘性抵抗＋慣性抵抗 | J2: マクロで計算➡ | L2: exe("ルンゲ･クッタ･ギル法","HorizontalMotion",C8:C15,J8:M8)
A3: v'＝－(γ/m)v－(k/m)v^2 | J3: マクロは標準モジュール-Module6 の中。 実行させるには =exe(･･･ と先頭に＝を付加する。
G4: 解析解 | L4: 数値積分 | Q4: 解析解との差
E5: 時間 | F5: 加速度 | G5: 速度 | H5: 変位 | J5: 時間 | K5: 加速度 | L5: 速度 | M5: 変位 | O5: 時間 | P5: 加速度 | Q5: 速度 | R5: 変位
E6: t | F6: 解析解x'' | G6: 解析解x' | H6: 解析解x | J6: t | K6: x'' | L6: x' | M6: x | O6: t | P6: x'' | Q6: x' | R6: x
E7: [s] | F7: [m/s^2] | G7: [m/s] | H7: [m] | J7: [s] | K7: [m/s^2] | L7: [m/s] | M7: [m] | O7: [s] | P7: [m/s^2] | Q7: [m/s] | R7: [m]
A8: 積分間隔 | B8: Δt | C8: 0.1 | D8: [s] | E8: 0 | F8: =-$C$16*G8-$C$17*G8^2 -> -10.1 | G8: =$C$15*$C$16*EXP(-$C$16*E8)/($C$16+$C$15*$C$17*(1-EXP(-$C$16*E8))) -> 100 | H8: =$C$14+(1/$C$17)*LN(1+$C$15*($C$17/$C$16)*(1-EXP(-$C$16*E8))) -> 0 | J8: 0 | K8: -10.1 | L8: 100 | M8: 0 | O8: =J8-E8 -> 0 | P8: =K8-F8 -> 0 | Q8: =L8-G8 -> 0 | R8: =M8-H8 -> 0
A9: 出力時間間隔 | B9: To | C9: 10 | D9: [s] | E9: =E8+$C$9 -> 10 | F9: =-$C$16*G9-$C$17*G9^2 -> -2.512380365 | G9: 49.62614453 | H9: 690.6523837 | J9: 10 | K9: -2.512380366 | L9: 49.62614454 | M9: 690.6523836 | O9: =J9-E9 -> 0 | P9: =K9-F9 -> -5.739129172e-10 | Q9: =L9-G9 -> 5.724686503e-09 | R9: =M9-H9 -> -1.117334705e-07
A10: 終了時間 | B10: TL | C10: 5000 | D10: [s] | E10: =E9+$C$9 -> 20 | F10: =-$C$16*G10-$C$17*G10^2 -> -1.114716135 | G10: 32.89110862 | H10: 1091.967819 | J10: 20 | K10: -1.114716135 | L10: 32.89110862 | M10: 1091.967819 | O10: =J10-E10 -> 1.492139745e-13 | P10: -1.864874921e-10 | Q10: 2.792475584e-09 | R10: -8.1023245e-08
A11: 質量 | B11: m | C11: 10 | D11: [kg] | E11: 30 | F11: -0.62647173 | G11: 24.53441092 | H11: 1375.093527 | J11: 30 | K11: -0.6264717301 | L11: 24.53441092 | M11: 1375.093527 | O11: 2.913225217e-13 | P11: -8.029721332e-11 | Q11: 1.603737587e-09 | R11: -6.14406872e-08
A12: 粘性抵抗係数 | B12: γ | C12: 0.01 | D12: [Ns/m] | E12: 40 | F12: -0.4007125692 | G12: 19.52404977 | H12: 1593.523159 | J12: 40 | K12: -0.4007125692 | L12: 19.52404977 | M12: 1593.523159 | O12: -1.350031198e-13 | P12: -4.139422138e-11 | Q12: 1.033612307e-09 | R12: -4.899993655e-08
A13: 慣性抵抗係数 | B13: k | C13: 0.01 | D13: [Ns^2/m^2] | E13: 50 | F13: -0.2781549306 | G13: 16.18547064 | H13: 1771.05622 | J13: 50 | K13: -0.2781549307 | L13: 16.18547065 | M13: 1771.05622 | O13: -7.034373084e-13 | P13: -2.402283927e-11 | Q13: 7.198721619e-10 | R13: -4.053003977e-08
A14: 初期変位 | B14: x0 | C14: 0 | D14: [m] | E14: 60 | F14: -0.2042882443 | G14: 13.80168676 | H14: 1920.379372 | J14: 60 | K14: -0.2042882443 | L14: 13.80168676 | M14: 1920.379372 | O14: -1.271871497e-12 | P14: -1.514835479e-11 | Q14: 5.295994754e-10 | R14: -3.44214186e-08
A15: 初期速度 | B15: v0 | C15: 100 | D15: [m/s] | E15: 70 | F15: -0.1563608942 | G15: 12.01442744 | H15: 2049.061971 | J15: 70 | K15: -0.1563608942 | L15: 12.01442744 | M15: 2049.061971 | O15: -1.833200258e-12 | P15: -1.015468265e-11 | Q15: 4.057199021e-10 | R15: -2.981960279e-08
B16: a＝γ/m | C16: =C12/C11 -> 0.001 | E16: 80 | F16: -0.1235098699 | G16: 10.62474134 | H16: 2161.984816 | J16: 80 | K16: -0.1235098699 | L16: 10.62474134 | M16: 2161.984816 | O16: -2.401634447e-12 | P16: -7.134806634e-12 | Q16: 3.206732657e-10 | R16: -2.623255568e-08
B17: b＝k/m | C17: =C13/C11 -> 0.001 | E17: 90 | F17: -0.1000161206 | G17: 9.513297191 | H17: 2262.479662 | J17: 90 | K17: -0.1000161206 | L17: 9.513297191 | M17: 2262.479662 | O17: -2.970068635e-12 | P17: -5.202435704e-12 | Q17: 2.597762006e-10 | R17: -2.334945748e-08
E18: 100 | F18: -0.08263603002 | G18: 8.604176515 | H18: 2352.922459 | J18: 100 | K18: -0.08263603003 | L18: 8.604176516 | M18: 2352.922459 | O18: -3.538502824e-12 | P18: -3.909289559e-12 | Q18: 2.14697593e-10 | R18: -2.099295671e-08
E19: 110 | F19: -0.06941869418 | G19: 7.846777473 | H19: 2435.067252 | J19: 110 | K19: -0.06941869418 | L19: 7.846777473 | M19: 2435.067252 | O19: -4.106937013e-12 | P19: -3.011230154e-12 | Q19: 1.803828198e-10 | R19: -1.90289029e-08
A20: 解析解 | E20: 120 | F20: -0.05913357597 | G20: 7.206073966 | H20: 2510.245909 | J20: 120 | K20: -0.05913357597 | L20: 7.206073966 | M20: 2510.245909 | O20: -4.675371201e-12 | P20: -2.368598373e-12 | Q20: 1.536841765e-10 | R20: -1.736225386e-08
A21: v＝v0(γ/m)e^(-γt/m)/[(γ/m)＋v0(k/m){1－e^(-γt/m)}] | E21: 130 | F21: -0.05097337765 | G21: 6.657050905 | H21: 2579.493607 | J21: 130 | K21: -0.05097337765 | L21: 6.657050905 | M21: 2579.493607 | O21: -4.689582056e-12 | P21: -1.896434398e-12 | Q21: 1.324869103e-10 | R21: -1.593798515e-08
A22: x＝x0＋(m/k)ln[1＋v0(k/γ){1－e^(-γt/m)}] | E22: 140 | F22: -0.04439065291 | G22: 6.181366096 | H22: 2643.630888 | J22: 140 | K22: -0.04439065291 | L22: 6.181366096 | M22: 2643.630888 | O22: -2.415845302e-12 | P22: -1.541815287e-12 | Q22: 1.153814821e-10 | R22: -1.47033461e-08
E23: 150 | F23: -0.03900353697 | G23: 5.765264318 | H23: 2703.319185 | J23: 150 | K23: -0.03900353697 | L23: 5.765264318 | M23: 2703.319185 | O23: 0 | P23: -1.27046984e-12 | Q23: 1.013900075e-10 | R23: -1.362377589e-08
A24: 計算式 | E24: 160 | F24: -0.03453909134 | G24: 5.398227814 | H24: 2759.099469 | J24: 160 | K24: -0.03453909134 | L24: 5.398227814 | M24: 2759.099469 | O24: 2.131628207e-12 | P24: -1.059229093e-12 | Q24: 8.97921737e-11 | R24: -1.266562322e-08
A25: v'＝－av－bv^2 | E25: 170 | F25: -0.03079803932 | G25: 5.072076751 | H25: 2811.419837 | J25: 170 | K25: -0.03079803932 | L25: 5.072076751 | M25: 2811.419837 | O25: 4.405364962e-12 | P25: -8.924042061e-13 | Q25: 8.007816632e-11 | R25: -1.182070264e-08
A26: v＝v0ae^(-at)/[a＋v0b{1－e^(-at)}] | E26: 180 | F26: -0.02763213641 | G26: =$C$15*$C$16*EXP(-$C$16*E26)/($C$16+$C$15*$C$17*(1-EXP(-$C$16*E26))) -> 4.780353815 | H26: =$C$14+(1/$C$17)*LN(1+$C$15*($C$17/$C$16)*(1-EXP(-$C$16*E26))) -> 2860.655622 | J26: 180 | K26: -0.02763213641 | L26: 4.780353815 | M26: 2860.655622 | O26: 6.679101716e-12 | P26: -7.588339679e-13 | Q26: 7.185452233e-11 | R26: -1.106400305e-08
A27: x＝x0＋(1/b)ln[1＋v0(b/a){1－e^(-at)}] | E27: 190 | F27: -0.0249292549 | G27: =$C$15*$C$16*EXP(-$C$16*E27)/($C$16+$C$15*$C$17*(1-EXP(-$C$16*E27))) -> 4.517893472 | H27: =$C$14+(1/$C$17)*LN(1+$C$15*($C$17/$C$16)*(1-EXP(-$C$16*E27))) -> 2907.124347 | J27: 190 | K27: -0.0249292549 | L27: 4.517893472 | M27: 2907.124347 | O27: 8.952838471e-12 | P27: -6.505490591e-13 | Q27: 6.482281378e-11 | R27: -1.038233677e-08
E28: 200 | F28: -0.0226033173 | G28: 4.280514334 | H28: 2951.097012 | J28: 200 | K28: -0.0226033173 | L28: 4.280514334 | M28: 2951.097012 | O28: 1.122657523e-11 | P28: -5.619150978e-13 | Q28: 5.877165421e-11 | R28: -9.762061381e-09
E29: 210 | F29: -0.02058735733 | G29: 4.064795432 | H29: 2992.806769 | J29: 210 | K29: -0.02058735733 | L29: 4.064795432 | M29: 2992.806769 | O29: 1.350031198e-11 | P29: -4.886369087e-13 | Q29: 5.352251975e-11 | R29: -9.20090315e-09
E30: 220 | F30: -0.01882864542 | G30: 3.867910876 | H30: 3032.45565 | J30: 220 | K30: -0.01882864542 | L30: 3.867910876 | M30: 3032.45565 | O30: 1.577404873e-11 | P30: -4.276197452e-13 | Q30: 4.895017724e-11 | R30: -8.684764907e-09
A31: 最終値(t→∞) | B31: 時間 | C31: ∞ | D31: [s] | E31: 230 | F31: -0.01728520529 | G31: 3.687505856 | H31: 3070.219876 | J31: 230 | K31: -0.01728520529 | L31: 3.687505856 | M31: 3070.219876 | O31: 1.804778549e-11 | P31: -3.763725442e-13 | Q31: 4.493960759e-11 | R31: -8.217284631e-09
A32: v＝0 | B32: 速度 | C32: 0 | D32: [m/s] | E32: 240 | F32: -0.01592328588 | G32: 3.521602402 | H32: 3106.254072 | J32: 240 | K32: -0.01592328588 | L32: 3.521602402 | M32: 3106.254072 | O32: 2.032152224e-11 | P32: -3.329697629e-13 | Q32: 4.139755205e-11 | R32: -7.786184142e-09
A33: x＝(1/b)ln{1＋v0(b/a)} | B33: 位置 | C33: =(1/C17)*LN(1+C15*(C13/C12)) -> 4615.120517 | D33: [m] | E33: 250 | F33: -0.01471550043 | G33: 3.368526907 | H33: 3140.694657 | J33: 250 | K33: -0.01471550043 | L33: 3.368526907 | M33: 3140.694657 | O33: 2.2595259e-11 | P33: -2.960149487e-13 | Q33: 3.82596177e-11 | R33: -7.387825463e-09
E34: 260 | F34: -0.01363943886 | G34: 3.226853747 | H34: 3173.662595 | J34: 260 | K34: -0.01363943886 | L34: 3.226853748 | M34: 3173.662595 | O34: 2.484057404e-11 | P34: -2.643250202e-13 | Q34: 3.546229976e-11 | R34: -7.019480108e-09
A35: 解析解の最終値 | B35: 時間 | C35: =E508 -> 5000 | D35: [s] | E35: 270 | F35: -0.0126766207 | G35: 3.095360997 | H35: 3205.265648 | J35: 270 | K35: -0.0126766207 | L35: 3.095360997 | M35: 3205.265648 | O35: 2.71143108e-11 | P35: -2.369597574e-13 | Q35: 3.295319573e-11 | R35: -6.672053132e-09
B36: 速度 | C36: =G508 -> 0.006716038924 | D36: [m/s] | E36: 280 | F36: -0.01181169634 | G36: 2.972995299 | H36: 3235.600223 | J36: 280 | K36: -0.01181169634 | L36: 2.972995299 | M36: 3235.600223 | O36: 2.938804755e-11 | P36: -2.13273843e-13 | Q36: 3.070432797e-11 | R36: -6.350546755e-09
B37: 位置 | C37: =H508 -> 4608.42693 | D37: [m] | E37: 290 | F37: -0.01103183143 | G37: 2.858843764 | H37: 3264.752921 | J37: 290 | K37: -0.01103183143 | L37: 2.858843764 | M37: 3264.752921 | O37: 3.166178431e-11 | P37: -1.926341031e-13 | Q37: 2.867572846e-11 | R37: -6.052232493e-09
E38: 300 | F38: -0.01032622801 | G38: 2.752111315 | H38: 3292.801818 | J38: 300 | K38: -0.01032622801 | L38: 2.752111315 | M38: 3292.801818 | O38: 3.393552106e-11 | P38: -1.745981831e-13 | Q38: 2.684386047e-11 | R38: -5.772108125e-09
E39: 310 | F39: -0.009685748745 | G39: 2.652102274 | H39: 3319.81755 | J39: 310 | K39: -0.009685748745 | L39: 2.652102274 | M39: 3319.81755 | O39: 3.620925781e-11 | P39: -1.587532189e-13 | Q39: 2.518207864e-11 | R39: -5.518359103e-09
E40: 320 | F40: -0.009102619642 | G40: 2.558205298 | H40: 3345.864229 | J40: 320 | K40: -0.009102619642 | L40: 2.558205298 | M40: 3345.864229 | O40: 3.848299457e-11 | P40: -1.447349185e-13 | Q40: 2.366329355e-11 | R40: -5.274614523e-09
E41: 330 | F41: -0.008570193013 | G41: 2.469880976 | H41: 3371.000224 | J41: 330 | K41: -0.008570193013 | L41: 2.469880976 | M41: 3371.000224 | O41: 4.075673132e-11 | P41: -1.323403193e-13 | Q41: 2.228039975e-11 | R41: -5.045876605e-09
E42: 340 | F42: -0.008082757197 | G42: 2.386651554 | H42: 3395.278826 | J42: 340 | K42: -0.008082757197 | L42: 2.386651554 | M42: 3395.278826 | O42: 4.303046808e-11 | P42: -1.213109474e-13 | Q42: 2.101252505e-11 | R42: -4.831235856e-09
E43: 350 | F43: -0.007635382742 | G43: 2.308092367 | H43: 3418.748818 | J43: 350 | K43: -0.007635382743 | L43: 2.308092367 | M43: 3418.748818 | O43: 4.530420483e-11 | P43: -1.115149639e-13 | Q43: 1.985611675e-11 | R43: -4.62796379e-09
E44: 360 | F44: -0.007223797295 | G44: 2.233824664 | H44: 3441.454974 | J44: 360 | K44: -0.007223797295 | L44: 2.233824664 | M44: 3441.454974 | O44: 4.757794159e-11 | P44: -1.027121097e-13 | Q44: 1.878541767e-11 | R44: -4.431058187e-09
E45: 370 | F45: -0.006844283223 | G45: 2.163509569 | H45: 3463.438483 | J45: 370 | K45: -0.006844283223 | L45: 2.163509569 | M45: 3463.438483 | O45: 4.985167834e-11 | P45: -9.480870949e-14 | Q45: 1.779776326e-11 | R45: -4.24688551e-09
E46: 380 | F46: -0.006493593377 | G46: 2.096842963 | H46: 3484.737323 | J46: 380 | K46: -0.006493593377 | L46: 2.096842963 | M46: 3484.737323 | O46: 5.21254151e-11 | P46: -8.769027171e-14 | Q46: 1.688382767e-11 | R46: -4.079538485e-09
E47: 390 | F47: -0.006168881411 | G47: 2.033551146 | H47: 3505.386588 | J47: 390 | K47: -0.006168881411 | L47: 2.033551146 | M47: 3505.386588 | O47: 5.439915185e-11 | P47: -8.128307055e-14 | Q47: 1.604139044e-11 | R47: -3.91037247e-09
E48: 400 | F48: -0.005867643845 | G48: 1.97338712 | H48: 3525.418769 | J48: 400 | K48: -0.005867643845 | L48: 1.97338712 | M48: 3525.418769 | O48: 5.66728886e-11 | P48: -7.547434899e-14 | Q48: 1.525735094e-11 | R48: -3.758941602e-09
E49: 410 | F49: -0.005587671675 | G49: 1.916127413 | H49: 3544.864009 | J49: 410 | K49: -0.005587671675 | L49: 1.916127413 | M49: 3544.864009 | O49: 5.894662536e-11 | P49: -7.021119797e-14 | Q49: 1.452948872e-11 | R49: -3.605236998e-09
E50: 420 | F50: -0.005327009763 | G50: 1.861569343 | H50: 3563.750321 | J50: 420 | K50: -0.005327009763 | L50: 1.861569343 | M50: 3563.750321 | O50: 6.122036211e-11 | P50: -6.542162645e-14 | Q50: 1.38513645e-11 | R50: -3.46062734e-09
E51: 430 | F51: -0.005083922614 | G51: 1.809528656 | H51: 3582.103786 | J51: 430 | K51: -0.005083922614 | L51: 1.809528656 | M51: 3582.103786 | O51: 6.349409887e-11 | P51: -6.10770115e-14 | Q51: 1.322275622e-11 | R51: -3.318746167e-09
E52: 440 | F52: -0.004856865419 | G52: 1.759837476 | H52: 3599.948724 | J52: 440 | K52: -0.004856865419 | L52: 1.759837476 | M52: 3599.948724 | O52: 6.576783562e-11 | P52: -5.709235168e-14 | Q52: 1.263211757e-11 | R52: -3.184595698e-09
E53: 450 | F53: -0.004644459454 | G53: 1.712342526 | H53: 3617.307854 | J53: 450 | K53: -0.004644459454 | L53: 1.712342526 | M53: 3617.307854 | O53: 6.804157238e-11 | P53: -5.345203447e-14 | Q53: 1.208033673e-11 | R53: -3.062268661e-09
E54: 460 | F54: -0.004445471107 | G54: 1.666903576 | H54: 3634.202427 | J54: 460 | K54: -0.004445471107 | L54: 1.666903576 | M54: 3634.202427 | O54: 7.031530913e-11 | P54: -5.011095705e-14 | Q54: 1.156252871e-11 | R54: -2.945398592e-09
E55: 470 | F55: -0.004258793923 | G55: 1.623392079 | H55: 3650.65235 | J55: 470 | K55: -0.004258793923 | L55: 1.623392079 | M55: 3650.65235 | O55: 7.258904589e-11 | P55: -4.70335576e-14 | Q55: 1.10751408e-11 | R55: -2.831257007e-09
E56: 480 | F56: -0.004083433201 | G56: 1.581689987 | H56: 3666.676299 | J56: 480 | K56: -0.004083433201 | L56: 1.581689987 | M56: 3666.676299 | O56: 7.486278264e-11 | P56: -4.420075417e-14 | Q56: 1.06166187e-11 | R56: -2.723936632e-09
E57: 490 | F57: -0.003918492711 | G57: 1.541688691 | H57: 3682.291818 | J57: 490 | K57: -0.003918492711 | L57: 1.541688691 | M57: 3682.291818 | O57: 7.713651939e-11 | P57: -4.160734257e-14 | Q57: 1.018940488e-11 | R57: -2.617980499e-09
E58: 500 | F58: -0.003763163229 | G58: 1.503288104 | H58: 3697.515407 | J58: 500 | K58: -0.003763163229 | L58: 1.503288104 | M58: 3697.515407 | O58: 7.941025615e-11 | P58: -3.919954639e-14 | Q58: 9.783951427e-12 | R58: -2.519755071e-09
E59: 510 | F59: -0.003616712591 | G59: 1.466395838 | H59: 3712.362607 | J59: 510 | K59: -0.003616712591 | L59: 1.466395838 | M59: 3712.362607 | O59: 8.16839929e-11 | P59: -3.698647291e-14 | Q59: 9.404477197e-12 | R59: -2.424258128e-09
E60: 520 | F60: -0.003478477054 | G60: 1.430926476 | H60: 3726.848066 | J60: 520 | K60: -0.003478477054 | L60: 1.430926476 | M60: 3726.848066 | O60: 7.480593922e-11 | P60: -3.492778983e-14 | Q60: 9.044320848e-12 | R60: -2.333308657e-09
E61: 530 | F61: -0.003347853763 | G61: 1.396800929 | H61: 3740.985615 | J61: 530 | K61: -0.003347853763 | L61: 1.396800929 | M61: 3740.985615 | O61: 6.57109922e-11 | P61: -3.302132873e-14 | Q61: 8.704592602e-12 | R61: -2.243268682e-09
E62: 540 | F62: -0.003224294169 | G62: 1.36394586 | H62: 3754.788319 | J62: 540 | K62: -0.003224294169 | L62: 1.36394586 | M62: 3754.788319 | O62: 5.661604519e-11 | P62: -3.125971704e-14 | Q62: 8.38529246e-12 | R62: -2.159595169e-09
E63: 550 | F63: -0.003107298265 | G63: 1.332293171 | H63: 3768.26854 | J63: 550 | K63: -0.003107298265 | L63: 1.332293171 | M63: 3768.26854 | O63: 4.752109817e-11 | P63: -2.961780127e-14 | Q63: 8.082201575e-12 | R63: -2.072738425e-09
E64: 560 | F64: -0.002996409518 | G64: 1.301779542 | H64: 3781.437979 | J64: 560 | K64: -0.002996409518 | L64: 1.301779542 | M64: 3781.437979 | O64: 3.842615115e-11 | P64: -2.808126995e-14 | Q64: 7.79265541e-12 | R64: -1.989974407e-09
E65: 570 | F65: -0.002891210412 | G65: 1.272346019 | H65: 3794.30773 | J65: 570 | K65: -0.002891210412 | L65: 1.272346019 | M65: 3794.30773 | O65: 2.933120413e-11 | P65: -2.665142412e-14 | Q65: 7.518652367e-12 | R65: -1.917669579e-09
E66: 580 | F66: -0.002791318515 | G66: 1.243937646 | H66: 3806.888316 | J66: 580 | K66: -0.002791318515 | L66: 1.243937646 | M66: 3806.888316 | O66: 2.023625711e-11 | P66: -2.531481968e-14 | Q66: 7.257972001e-12 | R66: -1.841726771e-09
E67: 590 | F67: -0.002696382998 | G67: 1.216503131 | H67: 3819.189729 | J67: 590 | K67: -0.002696382998 | L67: 1.216503131 | M67: 3819.189729 | O67: 1.11413101e-11 | P67: -2.406755351e-14 | Q67: 7.010614311e-12 | R67: -1.768967195e-09
E68: 600 | F68: -0.002606081554 | G68: 1.189994542 | H68: 3831.221465 | J68: 600 | K68: -0.002606081554 | L68: 1.189994542 | M68: 3831.221465 | O68: 2.046363079e-12 | P68: -2.290095197e-14 | Q68: 6.77524703e-12 | R68: -1.701664587e-09
E69: 610 | F69: -0.002520117657 | G69: 1.164367044 | H69: 3842.992557 | J69: 610 | K69: -0.002520117657 | L69: 1.164367044 | M69: 3842.992557 | O69: -7.048583939e-12 | P69: -2.181197931e-14 | Q69: 6.552758336e-12 | R69: -1.636180968e-09
E70: 620 | F70: -0.002438218129 | G70: 1.139578644 | H70: 3854.511603 | J70: 620 | K70: -0.002438218129 | L70: 1.139578644 | M70: 3854.511603 | O70: -1.614353096e-11 | P70: -2.078415565e-14 | Q70: 6.338263248e-12 | R70: -1.574790076e-09
E71: 630 | F71: -0.002360130969 | G71: 1.115589975 | H71: 3865.786795 | J71: 630 | K71: -0.002360130969 | L71: 1.115589975 | M71: 3865.786795 | O71: -2.523847797e-11 | P71: -1.982788933e-14 | Q71: 6.136424702e-12 | R71: -1.513853931e-09
E72: 640 | F72: -0.002285623409 | G72: 1.092364094 | H72: 3876.825945 | J72: 640 | K72: -0.002285623409 | L72: 1.092364094 | M72: 3876.825945 | O72: -3.433342499e-11 | P72: -1.892886889e-14 | Q72: 5.943689985e-12 | R72: -1.453372533e-09
E73: 650 | F73: -0.002214480183 | G73: 1.069866295 | H73: 3887.636504 | J73: 650 | K73: -0.002214480183 | L73: 1.069866295 | M73: 3887.636504 | O73: -4.342837201e-11 | P73: =K73-F73 -> -1.808709432e-14 | Q73: =L73-G73 -> 5.76072523e-12 | R73: =M73-H73 -> -1.398348104e-09
E74: =E73+$C$9 -> 660 | F74: =-$C$16*G74-$C$17*G74^2 -> -0.002146501969 | G74: 1.048063942 | H74: 3898.225588 | J74: 660 | K74: -0.002146501969 | L74: 1.048063942 | M74: 3898.225588 | O74: =J74-E74 -> -5.252331903e-11 | P74: -1.728218263e-14 | Q74: 5.581979323e-12 | R74: -1.34241418e-09
E75: 670 | F75: -0.002081503995 | G75: 1.026926323 | H75: 3908.599998 | J75: 670 | K75: -0.002081503995 | L75: 1.026926323 | M75: 3908.599998 | O75: -6.161826605e-11 | P75: -1.653191473e-14 | Q75: 5.413669513e-12 | R75: -1.283751772e-09
E76: 680 | F76: -0.002019314778 | G76: 1.006424501 | H76: 3918.766234 | J76: 680 | K76: -0.002019314778 | L76: 1.006424501 | M76: 3918.766234 | O76: -7.071321306e-11 | P76: -1.582197914e-14 | Q76: 5.251576951e-12 | R76: -1.233729563e-09
E77: 690 | F77: -0.001959774999 | G77: 0.9865311968 | H77: 3928.730516 | J77: 690 | K77: -0.001959774999 | L77: 0.9865311968 | M77: 3928.730516 | O77: -7.980816008e-11 | P77: -1.515107484e-14 | Q77: 5.096145728e-12 | R77: -1.183707354e-09
E78: 700 | F78: -0.001902736479 | G78: 0.9672206648 | H78: 3938.4988 | J78: 700 | K78: -0.001902736479 | L78: 0.9672206648 | M78: 3938.4988 | O78: -8.89031071e-11 | P78: -1.451703341e-14 | Q78: 4.947153798e-12 | R78: -1.12959242e-09
E79: 710 | F79: -0.001848061258 | G79: 0.9484685906 | H79: 3948.076791 | J79: 710 | K79: -0.001848061258 | L79: 0.9484685906 | M79: 3948.076791 | O79: -9.799805412e-11 | P79: -1.392245694e-14 | Q79: 4.805933429e-12 | R79: -1.079570211e-09
E80: 720 | F80: -0.001795620759 | G80: 0.9302519915 | H80: 3957.469957 | J80: 720 | K80: -0.001795620759 | L80: 0.9302519915 | M80: 3957.469957 | O80: -1.070930011e-10 | P80: -1.335628656e-14 | Q80: 4.669153952e-12 | R80: -1.034550223e-09
E81: 730 | F81: -0.001745295036 | G81: 0.912549127 | H81: 3966.683543 | J81: 730 | K81: -0.001745295036 | L81: 0.912549127 | M81: 3966.683543 | O81: -1.161879482e-10 | P81: -1.282177489e-14 | Q81: 4.538480702e-12 | R81: -9.904397302e-10
E82: 740 | F82: -0.001696972085 | G82: 0.8953394157 | H82: 3975.722583 | J82: 740 | K82: -0.001696972085 | L82: 0.8953394157 | M82: 3975.722583 | O82: -1.252828952e-10 | P82: -1.231458512e-14 | Q82: 4.412692434e-12 | R82: -9.445102478e-10
E83: 750 | F83: -0.001650547222 | G83: 0.8786033591 | H83: 3984.59191 | J83: 750 | K83: -0.001650547222 | L83: 0.8786033591 | M83: 3984.59191 | O83: -1.343778422e-10 | P83: -1.183081411e-14 | Q83: 4.290900968e-12 | R83: -9.003997548e-10
E84: 760 | F84: -0.001605922516 | G84: 0.8623224714 | H84: 3993.296167 | J84: 760 | K84: -0.001605922516 | L84: 0.8623224715 | M84: 3993.296167 | O84: -1.434727892e-10 | P84: -1.137588287e-14 | Q84: 4.175215729e-12 | R84: -8.549250197e-10
E85: 770 | F85: -0.001563006275 | G85: 0.8464792146 | H85: 4001.839818 | J85: 770 | K85: -0.001563006275 | L85: 0.8464792146 | M85: 4001.839818 | O85: -1.525677362e-10 | P85: -1.094610513e-14 | Q85: 4.064748538e-12 | R85: -8.11269274e-10
E86: 780 | F86: -0.001521712572 | G86: 0.8310569381 | H86: 4010.227155 | J86: 780 | K86: -0.001521712572 | L86: 0.8310569381 | M86: 4010.227155 | O86: -1.616626832e-10 | P86: -1.053801144e-14 | Q86: 3.958611217e-12 | R86: -7.757989806e-10
E87: 790 | F87: -0.001481960818 | G87: 0.8160398238 | H87: 4018.462307 | J87: 790 | K87: -0.001481960818 | L87: 0.8160398238 | M87: 4018.462307 | O87: -1.707576303e-10 | P87: -1.014531341e-14 | Q87: 3.854472297e-12 | R87: -7.34871719e-10
E88: 800 | F88: -0.001443675366 | G88: 0.8014128346 | H88: 4026.549252 | J88: 800 | K88: -0.001443675366 | L88: 0.8014128346 | M88: 4026.549252 | O88: -1.798525773e-10 | P88: -9.775600468e-15 | Q88: 3.755662448e-12 | R88: -6.962181942e-10
E89: 810 | F89: -0.001406785155 | G89: 0.7871616662 | H89: 4034.491817 | J89: 810 | K89: -0.001406785155 | L89: 0.7871616662 | M89: 4034.491817 | O89: -1.889475243e-10 | P89: -9.42215056e-15 | Q89: 3.660072245e-12 | R89: -6.598384061e-10
E90: 820 | F90: -0.001371223378 | G90: 0.7732727038 | H90: 4042.293692 | J90: 820 | K90: -0.001371223378 | L90: 0.7732727038 | M90: 4042.293692 | O90: -1.980424713e-10 | P90: -9.086264727e-15 | Q90: 3.568034757e-12 | R90: -6.243681128e-10
E91: 830 | F91: -0.001336927182 | G91: =$C$15*$C$16*EXP(-$C$16*E91)/($C$16+$C$15*$C$17*(1-EXP(-$C$16*E91))) -> 0.7597329804 | H91: =$C$14+(1/$C$17)*LN(1+$C$15*($C$17/$C$16)*(1-EXP(-$C$16*E91))) -> 4049.958435 | J91: 830 | K91: -0.001336927182 | L91: 0.7597329804 | M91: 4049.958435 | O91: -2.071374183e-10 | P91: -8.767292448e-15 | Q91: 3.479772026e-12 | R91: -5.8707883e-10
E92: 840 | F92: -0.001303837388 | G92: 0.7465301392 | H92: 4057.489475 | J92: 840 | K92: -0.001303837388 | L92: 0.7465301392 | M92: 4057.489475 | O92: -2.162323653e-10 | P92: -8.458294828e-15 | Q92: 3.392730541e-12 | R92: -5.529727787e-10
E93: 850 | F93: -0.001271898238 | G93: 0.7336523975 | H93: 4064.890121 | J93: 850 | K93: -0.001271898238 | L93: 0.7336523975 | M93: 4064.890121 | O93: -2.253273124e-10 | P93: -8.164042359e-15 | Q93: 3.308908703e-12 | R93: -5.234142009e-10
E94: 860 | F94: -0.00124105716 | G94: 0.7210885145 | H94: 4072.163569 | J94: 860 | K94: -0.00124105716 | L94: 0.7210885145 | M94: 4072.163569 | O94: -2.344222594e-10 | P94: -7.888655007e-15 | Q94: 3.23019389e-12 | R94: -4.934008757e-10
E95: 870 | F95: -0.001211264553 | G95: 0.7088277597 | H95: 4079.312902 | J95: 870 | K95: -0.001211264553 | L95: 0.7088277597 | M95: 4079.312902 | O95: -2.435172064e-10 | P95: -7.623025475e-15 | Q95: 3.15303339e-12 | R95: -4.583853297e-10
E96: 880 | F96: -0.001182473584 | G96: 0.6968598849 | H96: 4086.3411 | J96: 880 | K96: -0.001182473584 | L96: 0.6968598849 | M96: 4086.3411 | O96: -2.526121534e-10 | P96: -7.367587443e-15 | Q96: 3.077871291e-12 | R96: -4.270077625e-10
E97: 890 | F97: -0.001154640011 | G97: 0.685175097 | H97: 4093.251043 | J97: 890 | K97: -0.001154640011 | L97: 0.685175097 | M97: 4093.251043 | O97: -2.617071004e-10 | P97: -7.125159837e-15 | Q97: 3.005928839e-12 | R97: -3.988134267e-10
E98: 900 | F98: -0.001127722005 | G98: 0.6737640331 | H98: 4100.045515 | J98: 900 | K98: -0.001127722005 | L98: 0.6737640331 | M98: 4100.045515 | O98: -2.708020475e-10 | P98: -6.891405849e-15 | Q98: 2.935540699e-12 | R98: -3.710738383e-10
E99: 910 | F99: -0.001101680003 | G99: 0.6626177371 | H99: 4106.727206 | J99: 910 | K99: -0.001101680003 | L99: 0.6626177371 | M99: 4106.727206 | O99: -2.798969945e-10 | P99: -6.669144403e-15 | Q99: 2.868150162e-12 | R99: -3.437889973e-10
E100: 920 | F100: -0.001076476552 | G100: 0.6517276381 | H100: 4113.298723 | J100: 920 | K100: -0.001076476552 | L100: 0.6517276381 | M100: 4113.298723 | O100: -2.889919415e-10 | P100: -6.455773416e-15 | Q100: 2.802647003e-12 | R100: -3.192326403e-10
E101: 930 | F101: -0.001052076185 | G101: 0.6410855293 | H101: 4119.762586 | J101: 930 | K101: -0.001052076185 | L101: 0.6410855294 | M101: 4119.762586 | O101: -2.980868885e-10 | P101: -6.250859205e-15 | Q101: 2.738920202e-12 | R101: -2.964952728e-10
E102: 940 | F102: -0.001028445289 | G102: 0.6306835497 | H102: 4126.121234 | J102: 940 | K102: -0.001028445289 | L102: 0.6306835497 | M102: 4126.121234 | O102: -3.071818355e-10 | P102: -6.052883889e-15 | Q102: 2.67663669e-12 | R102: -2.755768946e-10
E103: 950 | F103: -0.001005551994 | G103: 0.6205141651 | H103: 4132.377032 | J103: 950 | K103: -0.001005551994 | L103: 0.6205141651 | M103: 4132.377032 | O103: -3.162767825e-10 | P103: -5.865100072e-15 | Q103: 2.617239758e-12 | R103: -2.50111043e-10
E104: 960 | F104: -0.0009833660627 | G104: 0.6105701521 | H104: 4138.532269 | J104: 960 | K104: -0.0009833660627 | L104: 0.6105701521 | M104: 4138.532269 | O104: -3.253717296e-10 | P104: -5.685773033e-15 | Q104: 2.559841228e-12 | R104: -2.155502443e-10
E105: 970 | F105: -0.0009618587932 | G105: 0.6008445818 | H105: 4144.589163 | J105: 970 | K105: -0.0009618587932 | L105: 0.6008445818 | M105: 4144.589163 | O105: -3.344666766e-10 | P105: -5.51457751e-15 | Q105: 2.504774166e-12 | R105: -1.928128768e-10
E106: 980 | F106: -0.000941002926 | G106: 0.591330805 | H106: 4150.549866 | J106: 980 | K106: -0.000941002926 | L106: 0.591330805 | M106: 4150.549866 | O106: -3.435616236e-10 | P106: -5.349453519e-15 | Q106: 2.450928349e-12 | R106: -1.64618541e-10
E107: 990 | F107: -0.0009207725572 | G107: 0.5820224384 | H107: 4156.416464 | J107: 990 | K107: -0.0009207725572 | L107: 0.5820224384 | M107: 4156.416464 | O107: -3.526565706e-10 | P107: -5.187907395e-15 | Q107: 2.397304577e-12 | R107: -1.500666258e-10
E108: 1000 | F108: -0.000901143059 | G108: 0.5729133511 | H108: 4162.190979 | J108: 1000 | K108: -0.000901143059 | L108: 0.5729133511 | M108: 4162.190979 | O108: -3.617515176e-10 | P108: -5.03536015e-15 | Q108: 2.346567385e-12 | R108: -1.300577424e-10
E109: 1010 | F109: -0.0008820910046 | G109: 0.5639976525 | H109: 4167.875376 | J109: 1010 | K109: -0.0008820910046 | L109: 0.5639976525 | M109: 4167.875376 | O109: -3.708464646e-10 | P109: -4.889426537e-15 | Q109: 2.297717572e-12 | R109: -1.091393642e-10
E110: 1020 | F110: -0.0008635940989 | G110: 0.5552696806 | H110: 4173.471558 | J110: 1020 | K110: -0.0008635940989 | L110: 0.5552696806 | M110: 4173.471558 | O110: -3.799414117e-10 | P110: -4.747504473e-15 | Q110: 2.24942287e-12 | R110: -9.003997548e-11
E111: 1030 | F111: -0.0008456311132 | G111: 0.5467239909 | H111: 4178.981377 | J111: 1030 | K111: -0.0008456311132 | L111: 0.5467239909 | M111: 4178.981377 | O111: -3.890363587e-10 | P111: -4.611979201e-15 | Q111: 2.20312657e-12 | R111: -6.366462912e-11
E112: 1040 | F112: -0.0008281818249 | G112: 0.5383553462 | H112: 4184.406628 | J112: 1040 | K112: -0.0008281818249 | L112: 0.5383553462 | M112: 4184.406628 | O112: -3.981313057e-10 | P112: -4.483609664e-15 | Q112: 2.158939694e-12 | R112: -4.547473509e-11
E113: 1050 | F113: -0.0008112269605 | G113: 0.5301587065 | H113: 4189.749057 | J113: 1050 | K113: -0.0008112269605 | L113: 0.5301587065 | M113: 4189.749057 | O113: -4.072262527e-10 | P113: -4.35697485e-15 | Q113: 2.114752817e-12 | R113: -2.273736754e-11
E114: 1060 | F114: -0.0007947481428 | G114: 0.5221292202 | H114: 4195.010359 | J114: 1060 | K114: -0.0007947481428 | L114: 0.5221292202 | M114: 4195.010359 | O114: -4.163211997e-10 | P114: -4.236086308e-15 | Q114: 2.072231275e-12 | R114: -1.182343112e-11
E115: 1070 | F115: -0.0007787278414 | G115: 0.5142622153 | H115: 4200.192183 | J115: 1070 | K115: -0.0007787278414 | L115: 0.5142622153 | M115: 4200.192183 | O115: -4.254161468e-10 | P115: -4.119751415e-15 | Q115: 2.030819957e-12 | R115: 7.275957614e-12
E116: 1080 | F116: -0.000763149326 | G116: 0.5065531909 | H116: 4205.29613 | J116: 1080 | K116: -0.000763149326 | L116: 0.5065531909 | M116: 4205.29613 | O116: -4.345110938e-10 | P116: -4.005801767e-15 | Q116: 1.989852727e-12 | R116: 3.274180926e-11
E117: 1090 | F117: -0.0007479966234 | G117: 0.4989978095 | H117: 4210.323759 | J117: 1090 | K117: -0.0007479966234 | L117: 0.4989978095 | M117: 4210.323759 | O117: -4.436060408e-10 | P117: -3.896188927e-15 | Q117: 1.950106743e-12 | R117: 4.91127139e-11
E118: 1100 | F118: -0.0007332544762 | G118: 0.4915918899 | H118: 4215.276585 | J118: 1100 | K118: -0.0007332544762 | L118: 0.4915918899 | M118: 4215.276585 | O118: -4.527009878e-10 | P118: -3.791021316e-15 | Q118: 1.911582004e-12 | R118: 6.275513442e-11
E119: 1110 | F119: -0.0007189083052 | G119: 0.4843314001 | H119: 4220.156082 | J119: 1110 | K119: -0.0007189083052 | L119: 0.4843314001 | M119: 4220.156082 | O119: -4.617959348e-10 | P119: -3.689648413e-15 | Q119: 1.874167488e-12 | R119: 8.731149137e-11
E120: 1120 | F120: -0.0007049441733 | G120: 0.4772124504 | H120: 4224.963684 | J120: 1120 | K120: -0.0007049441733 | L120: 0.4772124504 | M120: 4224.963684 | O120: -4.708908818e-10 | P120: -3.591853377e-15 | Q120: 1.837807684e-12 | R120: 1.091393642e-10
E121: 1130 | F121: -0.0006913487516 | G121: 0.4702312877 | H121: 4229.70079 | J121: 1130 | K121: -0.0006913487516 | L121: 0.4702312877 | M121: 4229.70079 | O121: -4.799858289e-10 | P121: -3.497853049e-15 | Q121: 1.802613614e-12 | R121: 1.164153218e-10
E122: 1140 | F122: -0.0006781092882 | G122: 0.4633842889 | H122: 4234.368757 | J122: 1140 | K122: -0.0006781092882 | L122: 0.4633842889 | M122: 4234.368757 | O122: -4.890807759e-10 | P122: -3.405479024e-15 | Q122: 1.767475055e-12 | R122: 1.227817847e-10
E123: 1150 | F123: -0.0006652135783 | G123: 0.4566679561 | H123: 4238.968911 | J123: 1150 | K123: -0.0006652135783 | L123: 0.4566679561 | M123: 4238.968911 | O123: -4.981757229e-10 | P123: -3.317008127e-15 | Q123: 1.733668764e-12 | R123: 1.373337e-10
E124: 1160 | F124: -0.0006526499362 | G124: 0.4500789105 | H124: 4243.502541 | J124: 1160 | K124: -0.0006526499363 | L124: 0.4500789105 | M124: 4243.502541 | O124: -5.072706699e-10 | P124: -3.231789836e-15 | Q124: 1.700750651e-12 | R124: 1.618900569e-10
E125: 1170 | F125: -0.0006404071694 | G125: 0.4436138879 | H125: 4247.970903 | J125: 1170 | K125: -0.0006404071694 | L125: 0.4436138879 | M125: 4247.970903 | O125: -5.163656169e-10 | P125: -3.149498891e-15 | Q125: 1.668831739e-12 | R125: 1.73713488e-10
E126: 1180 | F126: -0.0006284745531 | G126: 0.4372697334 | H126: 4252.375221 | J126: 1180 | K126: -0.0006284745531 | L126: 0.4372697334 | M126: 4252.375221 | O126: -5.254605639e-10 | P126: -3.069701611e-15 | Q126: 1.637578961e-12 | R126: 1.909938874e-10
E127: 1190 | F127: -0.0006168418076 | G127: 0.4310433973 | H127: 4256.71669 | J127: 1190 | K127: -0.0006168418076 | L127: 0.4310433973 | M127: 4256.71669 | O127: -5.34555511e-10 | P127: -2.992940097e-15 | Q127: 1.607269873e-12 | R127: 2.07364792e-10
E128: 1200 | F128: -0.0006054990761 | G128: 0.4249319305 | H128: 4260.996472 | J128: 1200 | K128: -0.0006054990761 | L128: 0.4249319305 | M128: 4260.996472 | O128: -5.43650458e-10 | P128: -2.918021727e-15 | Q128: 1.577460385e-12 | R128: 2.273736754e-10
E129: 1210 | F129: -0.0005944369039 | G129: 0.4189324806 | H129: 4265.215702 | J129: 1210 | K129: -0.0005944369039 | L129: 0.4189324806 | M129: 4265.215702 | O129: -5.52745405e-10 | P129: -2.846139123e-15 | Q129: 1.548594586e-12 | R129: 2.437445801e-10
E130: 1220 | F130: -0.0005836462189 | G130: 0.4130422875 | H130: 4269.375486 | J130: 1220 | K130: -0.0005836462189 | L130: 0.4130422875 | M130: 4269.375486 | O130: -5.61840352e-10 | P130: -2.776967024e-15 | Q130: 1.520727988e-12 | R130: 2.619344741e-10
E131: 1230 | F131: -0.000573118313 | G131: 0.4072586803 | H131: 4273.476903 | J131: 1230 | K131: -0.000573118313 | L131: 0.4072586803 | M131: 4273.476903 | O131: -5.70935299e-10 | P131: -2.709421229e-15 | Q131: 1.493194457e-12 | R131: 2.819433575e-10
E132: 1240 | F132: -0.0005628448253 | G132: 0.4015790733 | H132: 4277.521006 | J132: 1240 | K132: -0.0005628448253 | L132: 0.4015790733 | M132: 4277.521006 | O132: -5.800302461e-10 | P132: -2.64480278e-15 | Q132: 1.46682666e-12 | R132: 2.955857781e-10
E133: 1250 | F133: -0.0005528177249 | G133: 0.3960009626 | H133: 4281.508823 | J133: 1250 | K133: -0.0005528177249 | L133: 0.3960009626 | M133: 4281.508823 | O133: -5.891251931e-10 | P133: -2.582135894e-15 | Q133: 1.440902953e-12 | R133: 3.055902198e-10
E134: 1260 | F134: -0.0005430292957 | G134: 0.3905219232 | H134: 4285.441356 | J134: 1260 | K134: -0.0005430292958 | L134: 0.3905219232 | M134: 4285.441356 | O134: -5.982201401e-10 | P134: -2.520661631e-15 | Q134: 1.415312312e-12 | R134: 3.192326403e-10
E135: 1270 | F135: -0.0005334721218 | G135: 0.3851396058 | H135: 4289.319584 | J135: 1270 | K135: -0.0005334721218 | L135: 0.3851396058 | M135: 4289.319584 | O135: -6.073150871e-10 | P135: -2.460705251e-15 | Q135: 1.390054738e-12 | R135: 3.337845556e-10
E136: 1280 | F136: -0.0005241390734 | G136: 0.3798517337 | H136: 4293.144463 | J136: 1280 | K136: -0.0005241390734 | L136: 0.3798517337 | M136: 4293.144463 | O136: -6.164100341e-10 | P136: -2.403350956e-15 | Q136: 1.365796365e-12 | R136: 3.483364708e-10
E137: 1290 | F137: -0.0005150232936 | G137: 0.3746561002 | H137: 4296.916926 | J137: 1290 | K137: -0.0005150232936 | L137: 0.3746561002 | M137: 4296.916926 | O137: -6.255049811e-10 | P137: =K137-F137 -> -2.348490326e-15 | Q137: =L137-G137 -> 1.342537193e-12 | R137: =M137-H137 -> 3.592504072e-10
E138: =E137+$C$9 -> 1300 | F138: =-$C$16*G138-$C$17*G138^2 -> -0.0005061181862 | G138: 0.3695505657 | H138: 4300.637885 | J138: 1300 | K138: -0.0005061181862 | L138: 0.3695505657 | M138: 4300.637885 | O138: =J138-E138 -> -6.345999282e-10 | P138: -2.294388637e-15 | Q138: 1.319333531e-12 | R138: 3.701643436e-10
E139: 1310 | F139: -0.0004974174039 | G139: 0.3645330554 | H139: 4304.308231 | J139: 1310 | K139: -0.0004974174039 | L139: 0.3645330554 | M139: 4304.308231 | O139: -6.436948752e-10 | P139: -2.242346933e-15 | Q139: 1.296851515e-12 | R139: 3.892637324e-10
E140: 1320 | F140: -0.0004889148366 | G140: 0.3596015569 | H140: 4307.928833 | J140: 1320 | K140: -0.0004889148366 | L140: 0.3596015569 | M140: 4307.928833 | O140: -6.527898222e-10 | P140: -2.191281011e-15 | Q140: 1.274536032e-12 | R140: 4.001776688e-10
E141: 1330 | F141: -0.0004806046015 | G141: 0.3547541176 | H141: 4311.500542 | J141: 1330 | K141: -0.0004806046015 | L141: 0.3547541176 | M141: 4311.500542 | O141: -6.618847692e-10 | P141: -2.142383493e-15 | Q141: 1.25321975e-12 | R141: 4.101821105e-10
E142: 1340 | F142: -0.0004724810326 | G142: 0.3499888427 | H142: 4315.024189 | J142: 1340 | K142: -0.0004724810326 | L142: 0.3499888427 | M142: 4315.024189 | O142: -6.709797162e-10 | P142: -2.094895438e-15 | Q142: 1.232347557e-12 | R142: 4.192770575e-10
E143: 1350 | F143: -0.0004645386714 | G143: 0.3453038929 | H143: 4318.500587 | J143: 1350 | K143: -0.0004645386714 | L143: 0.3453038929 | M143: 4318.500587 | O143: -6.800746633e-10 | P143: -2.048545795e-15 | Q143: 1.211697409e-12 | R143: 4.320099833e-10
E144: 1360 | F144: -0.0004567722575 | G144: 0.3406974828 | H144: 4321.930529 | J144: 1360 | K144: -0.0004567722575 | L144: 0.3406974828 | M144: 4321.930529 | O144: -6.891696103e-10 | P144: -2.003280354e-15 | Q144: 1.191435839e-12 | R144: 4.420144251e-10
E145: 1370 | F145: -0.0004491767205 | G145: 0.3361678782 | H145: 4325.314792 | J145: 1370 | K145: -0.0004491767205 | L145: 0.3361678782 | M145: 4325.314792 | O145: -6.982645573e-10 | P145: -1.959044905e-15 | Q145: 1.171451824e-12 | R145: 4.547473509e-10
E146: 1380 | F146: -0.0004417471715 | G146: 0.3317133951 | H146: 4328.654137 | J146: 1380 | K146: -0.0004417471715 | L146: 0.3317133951 | M146: 4328.654137 | O146: -7.073595043e-10 | P146: -1.91648997e-15 | Q146: 1.152133944e-12 | R146: 4.711182555e-10
E147: 1390 | F147: -0.0004344788955 | G147: 0.3273323972 | H147: 4331.949305 | J147: 1390 | K147: -0.0004344788955 | L147: 0.3273323972 | M147: 4331.949305 | O147: -7.164544513e-10 | P147: -1.874802397e-15 | Q147: 1.133038108e-12 | R147: 4.838511813e-10
E148: 1400 | F148: -0.0004273673437 | G148: 0.3230232948 | H148: 4335.201024 | J148: 1400 | K148: -0.0004273673437 | L148: 0.3230232948 | M148: 4335.201024 | O148: -7.255493983e-10 | P148: -1.835229017e-15 | Q148: 1.114941472e-12 | R148: 4.91127139e-10
E149: 1410 | F149: -0.0004204081272 | G149: 0.3187845426 | H149: 4338.410006 | J149: 1410 | K149: -0.0004204081272 | L149: 0.3187845426 | M149: 4338.410006 | O149: -7.346443454e-10 | P149: -1.79673984e-15 | Q149: 1.097177904e-12 | R149: 5.09317033e-10
E150: 1420 | F150: -0.0004135970094 | G150: 0.3146146386 | H150: 4341.576945 | J150: 1420 | K150: -0.0004135970094 | L150: 0.3146146386 | M150: 4341.576945 | O150: -7.437392924e-10 | P150: -1.759009605e-15 | Q150: 1.07963638e-12 | R150: 5.229594535e-10
E151: 1430 | F151: -0.0004069299005 | G151: 0.3105121224 | H151: 4344.702523 | J151: 1430 | K151: -0.0004069299005 | L151: 0.3105121224 | M151: 4344.702523 | O151: -7.528342394e-10 | P151: -1.721062529e-15 | Q151: 1.061706278e-12 | R151: 5.302354111e-10
E152: 1440 | F152: -0.000400402851 | G152: 0.3064755737 | H152: 4347.787407 | J152: 1440 | K152: -0.000400402851 | L152: 0.3064755737 | M152: 4347.787407 | O152: -7.619291864e-10 | P152: -1.685500697e-15 | Q152: 1.044997422e-12 | R152: 5.411493476e-10
E153: 1450 | F153: -0.000394012046 | G153: 0.3025036112 | H153: 4350.83225 | J153: 1450 | K153: -0.000394012046 | L153: 0.3025036112 | M153: 4350.83225 | O153: -7.710241334e-10 | P153: -1.650101496e-15 | Q153: 1.028066521e-12 | R153: 5.538822734e-10
E154: 1460 | F154: -0.0003877537998 | G154: 0.2985948909 | H154: 4353.83769 | J154: 1460 | K154: -0.0003877537998 | L154: 0.2985948909 | M154: 4353.83769 | O154: -7.801190804e-10 | P154: -1.616491229e-15 | Q154: 1.012079309e-12 | R154: 5.70253178e-10
E155: 1470 | F155: -0.0003816245508 | G155: =$C$15*$C$16*EXP(-$C$16*E155)/($C$16+$C$15*$C$17*(1-EXP(-$C$16*E155))) -> 0.2947481052 | H155: =$C$14+(1/$C$17)*LN(1+$C$15*($C$17/$C$16)*(1-EXP(-$C$16*E155))) -> 4356.804354 | J155: 1470 | K155: -0.0003816245508 | L155: 0.2947481052 | M155: 4356.804354 | O155: -7.892140275e-10 | P155: -1.583748323e-15 | Q155: 9.963696534e-13 | R155: 5.693436833e-10
E156: 1480 | F156: -0.0003756208561 | G156: 0.2909619814 | H156: 4359.732854 | J156: 1480 | K156: -0.0003756208561 | L156: 0.2909619814 | M156: 4359.732854 | O156: -7.983089745e-10 | P156: -1.550842788e-15 | Q156: 9.803269307e-13 | R156: 5.775291356e-10
E157: 1490 | F157: -0.0003697393872 | G157: 0.2872352807 | H157: 4362.623792 | J157: 1490 | K157: -0.0003697393872 | L157: 0.2872352807 | M157: 4362.623792 | O157: -8.074039215e-10 | P157: -1.518967244e-15 | Q157: 9.647282972e-13 | R157: 5.902620615e-10
E158: 1500 | F158: -0.0003639769254 | G158: 0.283566797 | H158: 4365.477754 | J158: 1500 | K158: -0.0003639769254 | L158: 0.283566797 | M158: 4365.477754 | O158: -8.164988685e-10 | P158: -1.488772213e-15 | Q158: 9.500178422e-13 | R158: 6.120899343e-10
E159: 1510 | F159: -0.0003583303572 | G159: 0.2799553559 | H159: 4368.295318 | J159: 1510 | K159: -0.0003583303572 | L159: 0.2799553559 | M159: 4368.295318 | O159: -8.255938155e-10 | P159: -1.458902443e-15 | Q159: 9.352518759e-13 | R159: 6.111804396e-10
E160: 1520 | F160: -0.0003527966706 | G160: 0.2763998136 | H160: 4371.077047 | J160: 1520 | K160: -0.0003527966706 | L160: 0.2763998136 | M160: 4371.077047 | O160: -8.346887626e-10 | P160: -1.429520564e-15 | Q160: 9.20596932e-13 | R160: 6.102709449e-10
E161: 1530 | F161: -0.0003473729507 | G161: 0.2728990559 | H161: 4373.823497 | J161: 1530 | K161: -0.0003473729507 | L161: 0.2728990559 | M161: 4373.823497 | O161: -8.437837096e-10 | P161: -1.400409736e-15 | Q161: 9.059419881e-13 | R161: 6.202753866e-10
E162: 1540 | F162: -0.0003420563764 | G162: 0.2694519974 | H162: 4376.535208 | J162: 1540 | K162: -0.0003420563764 | L162: 0.2694519974 | M162: 4376.535208 | O162: -8.528786566e-10 | P162: -1.373358892e-15 | Q162: 8.924527783e-13 | R162: 6.266418495e-10
E163: 1550 | F163: -0.0003368442165 | G163: 0.2660575804 | H163: 4379.212712 | J163: 1550 | K163: -0.0003368442165 | L163: 0.2660575804 | M163: 4379.212712 | O163: -8.619736036e-10 | P163: -1.346416468e-15 | Q163: 8.787970351e-13 | R163: 6.339178071e-10
E164: 1560 | F164: -0.0003317338263 | G164: 0.2627147739 | H164: 4381.856531 | J164: 1560 | K164: -0.0003317338263 | L164: 0.2627147739 | M164: 4381.856531 | O164: -8.710685506e-10 | P164: -1.320883507e-15 | Q164: 8.659184481e-13 | R164: 6.375557859e-10
E165: 1570 | F165: -0.0003267226446 | G165: 0.2594225732 | H165: 4384.467176 | J165: 1570 | K165: -0.0003267226446 | L165: 0.2594225732 | M165: 4384.467176 | O165: -8.801634976e-10 | P165: -1.295296335e-15 | Q165: 8.528178164e-13 | R165: 6.357367965e-10
E166: 1580 | F166: -0.0003218081903 | G166: 0.2561799986 | H166: 4387.045148 | J166: 1580 | K166: -0.0003218081903 | L166: 0.2561799986 | M166: 4387.045148 | O166: -8.892584447e-10 | P166: -1.270684946e-15 | Q166: 8.40216785e-13 | R166: 6.411937647e-10
E167: 1590 | F167: -0.0003169880592 | G167: 0.252986095 | H167: 4389.590938 | J167: 1590 | K167: -0.0003169880592 | L167: 0.252986095 | M167: 4389.590938 | O167: -8.983533917e-10 | P167: -1.245585666e-15 | Q167: 8.271161533e-13 | R167: 6.493792171e-10
E168: 1600 | F168: -0.0003122599218 | G168: 0.2498399308 | H168: 4392.105029 | J168: 1600 | K168: -0.0003122599218 | L168: 0.2498399308 | M168: 4392.105029 | O168: -9.074483387e-10 | P168: -1.222112689e-15 | Q168: 8.149037001e-13 | R168: 6.675691111e-10
E169: 1610 | F169: -0.0003076215198 | G169: 0.2467405974 | H169: 4394.587893 | J169: 1610 | K169: -0.0003076215198 | L169: 0.2467405974 | M169: 4394.587893 | O169: -9.165432857e-10 | P169: -1.198910762e-15 | Q169: 8.027745135e-13 | R169: 6.757545634e-10
E170: 1620 | F170: -0.0003030706642 | G170: 0.2436872086 | H170: 4397.039994 | J170: 1620 | K170: -0.0003030706642 | L170: 0.2436872086 | M170: 4397.039994 | O170: -9.256382327e-10 | P170: -1.176034096e-15 | Q170: 7.906730826e-13 | R170: 6.803020369e-10
E171: 1630 | F171: -0.000298605232 | G171: 0.2406788994 | H171: 4399.461788 | J171: 1630 | K171: -0.000298605232 | L171: 0.2406788994 | M171: 4399.461788 | O171: -9.347331797e-10 | P171: -1.153536901e-15 | Q171: 7.78738185e-13 | R171: 6.939444575e-10
E172: 1640 | F172: -0.0002942231646 | G172: 0.237714826 | H172: 4401.85372 | J172: 1640 | K172: -0.0002942231646 | L172: 0.237714826 | M172: 4401.85372 | O172: -9.438281268e-10 | P172: -1.132178119e-15 | Q172: 7.67358399e-13 | R172: 7.066773833e-10
E173: 1650 | F173: -0.0002899224647 | G173: 0.2347941649 | H173: 4404.216229 | J173: 1650 | K173: -0.0002899224647 | L173: 0.2347941649 | M173: 4404.216229 | O173: -9.529230738e-10 | P173: -1.111198807e-15 | Q173: 7.561451465e-13 | R173: 7.185008144e-10
E174: 1660 | F174: -0.000285701195 | G174: 0.231916112 | H174: 4406.549745 | J174: 1660 | K174: -0.000285701195 | L174: 0.231916112 | M174: 4406.549745 | O174: -9.620180208e-10 | P174: -1.090924226e-15 | Q174: 7.452649609e-13 | R174: 7.148628356e-10
E175: 1670 | F175: -0.0002815574751 | G175: 0.2290798825 | H175: 4408.85469 | J175: 1670 | K175: -0.0002815574751 | L175: 0.2290798825 | M175: 4408.85469 | O175: -9.711129678e-10 | P175: -1.070974906e-15 | Q175: 7.344680419e-13 | R175: 7.212292985e-10
E176: 1680 | F176: -0.0002774894801 | G176: 0.2262847101 | H176: 4411.131479 | J176: 1680 | K176: -0.0002774894801 | L176: 0.2262847101 | M176: 4411.131479 | O176: -9.802079148e-10 | P176: -1.051567687e-15 | Q176: 7.239209232e-13 | R176: 7.403286872e-10
E177: 1690 | F177: -0.0002734954386 | G177: 0.2235298464 | H177: 4413.380519 | J177: 1690 | K177: -0.0002734954386 | L177: 0.2235298464 | M177: 4413.380519 | O177: -9.893028619e-10 | P177: -1.032594149e-15 | Q177: 7.135958491e-13 | R177: 7.366907084e-10
E178: 1700 | F178: -0.0002695736307 | G178: 0.2208145605 | H178: 4415.602208 | J178: 1700 | K178: -0.0002695736307 | L178: 0.2208145605 | M178: 4415.602208 | O178: -9.983978089e-10 | P178: -1.014162712e-15 | Q178: 7.034928196e-13 | R178: 7.376002031e-10
E179: 1710 | F179: -0.0002657223861 | G179: 0.2181381386 | H179: 4417.79694 | J179: 1710 | K179: -0.0002657223861 | L179: 0.2181381386 | M179: 4417.79694 | O179: -1.007492756e-09 | P179: -9.95622855e-16 | Q179: 6.932232566e-13 | R179: 7.512426237e-10
E180: 1720 | F180: -0.0002619400826 | G180: 0.215499883 | H180: 4419.965098 | J180: 1720 | K180: -0.0002619400826 | L180: 0.215499883 | M180: 4419.965098 | O180: -1.016587703e-09 | P180: -9.777877293e-16 | Q180: 6.833145161e-13 | R180: 7.485141396e-10
E181: 1730 | F181: -0.0002582251444 | G181: 0.2128991124 | H181: 4422.107062 | J181: 1730 | K181: -0.0002582251444 | L181: 0.2128991124 | M181: 4422.107062 | O181: -1.02568265e-09 | P181: -9.603862844e-16 | Q181: 6.736000646e-13 | R181: 7.603375707e-10
E182: 1740 | F182: -0.0002545760405 | G182: 0.2103351607 | H182: 4424.223203 | J182: 1740 | K182: -0.0002545760405 | L182: 0.2103351607 | M182: 4424.223203 | O182: -1.034777597e-09 | P182: -9.436353608e-16 | Q182: 6.642186801e-13 | R182: 7.694325177e-10
E183: 1750 | F183: -0.000250991283 | G183: 0.2078073771 | H183: 4426.313886 | J183: 1750 | K183: -0.000250991283 | L183: 0.2078073771 | M183: 4426.313886 | O183: -1.043872544e-09 | P183: -9.269386474e-16 | Q183: 6.547817843e-13 | R183: 7.639755495e-10
E184: 1760 | F184: -0.000247469426 | G184: 0.2053151254 | H184: 4428.379469 | J184: 1760 | K184: -0.0002474694261 | L184: 0.2053151254 | M184: 4428.379469 | O184: -1.052967491e-09 | P184: -9.107298249e-16 | Q184: 6.455946888e-13 | R184: 7.912603905e-10
E185: 1770 | F185: -0.0002440090639 | G185: 0.2028577836 | H185: 4430.420305 | J185: 1770 | K185: -0.0002440090639 | L185: 0.2028577836 | M185: 4430.420305 | O185: -1.062062438e-09 | P185: -8.945210024e-16 | Q185: 6.363520821e-13 | R185: 7.812559488e-10
E186: 1780 | F186: -0.0002406088301 | G186: 0.2004347436 | H186: 4432.436739 | J186: 1780 | K186: -0.0002406088301 | L186: 0.2004347437 | M186: 4432.436739 | O186: -1.071157385e-09 | P186: -8.790169113e-16 | Q186: 6.274980535e-13 | R186: 7.967173588e-10
E187: 1790 | F187: -0.0002372673958 | G187: 0.198045411 | H187: 4434.429112 | J187: 1790 | K187: -0.0002372673958 | L187: 0.198045411 | M187: 4434.429112 | O187: -1.080252332e-09 | P187: -8.638380809e-16 | Q187: 6.187550472e-13 | R187: 7.976268535e-10
E188: 1800 | F188: -0.0002339834686 | G188: 0.195689204 | H188: 4436.397758 | J188: 1800 | K188: -0.0002339834686 | L188: 0.195689204 | M188: 4436.397758 | O188: -1.089347279e-09 | P188: -8.488760909e-16 | Q188: 6.100953076e-13 | R188: 8.158167475e-10
E189: 1810 | F189: -0.0002307557916 | G189: 0.1933655541 | H189: 4438.343005 | J189: 1810 | K189: -0.0002307557916 | L189: 0.1933655541 | M189: 4438.343005 | O189: -1.098442226e-09 | P189: -8.345104122e-16 | Q189: 6.017963905e-13 | R189: 8.103597793e-10
E190: 1820 | F190: -0.0002275831419 | G190: 0.1910739048 | H190: 4440.265176 | J190: 1820 | K190: -0.0002275831419 | L190: 0.1910739048 | M190: 4440.265176 | O190: -1.107537173e-09 | P190: -8.201718384e-16 | Q190: 5.933864511e-13 | R190: 8.212737157e-10
E191: 1830 | F191: -0.0002244643296 | G191: 0.1888137118 | H191: 4442.164588 | J191: 1830 | K191: -0.0002244643296 | L191: 0.1888137118 | M191: 4442.164588 | O191: -1.11663212e-09 | P191: -8.063753658e-16 | Q191: 5.853373342e-13 | R191: 8.11269274e-10
E192: 1840 | F192: -0.0002213981968 | G192: 0.1865844426 | H192: 4444.041553 | J192: 1840 | K192: -0.0002213981968 | L192: 0.1865844426 | M192: 4444.041553 | O192: -1.125727067e-09 | P192: -7.927957336e-16 | Q192: 5.773437284e-13 | R192: 8.212737157e-10
E193: 1850 | F193: -0.0002183836167 | G193: 0.184385576 | H193: 4445.896378 | J193: 1850 | K193: -0.0002183836167 | L193: 0.184385576 | M193: 4445.896378 | O193: -1.134822014e-09 | P193: -7.792703115e-16 | Q193: 5.69322367e-13 | R193: 8.139977581e-10
E194: 1860 | F194: -0.0002154194922 | G194: 0.1822166021 | H194: 4447.729364 | J194: 1860 | K194: -0.0002154194922 | L194: 0.1822166021 | M194: 4447.729364 | O194: -1.143916961e-09 | P194: -7.662869905e-16 | Q194: 5.61606317e-13 | R194: 8.285496733e-10
E195: 1870 | F195: -0.0002125047553 | G195: 0.1800770216 | H195: 4449.540808 | J195: 1870 | K195: -0.0002125047553 | L195: 0.1800770216 | M195: 4449.540808 | O195: -1.153011908e-09 | P195: -7.536289301e-16 | Q195: 5.54084556e-13 | R195: 8.139977581e-10
E196: 1880 | F196: -0.0002096383661 | G196: 0.1779663458 | H196: 4451.331001 | J196: 1880 | K196: -0.0002096383661 | L196: 0.1779663458 | M196: 4451.331001 | O196: -1.162106855e-09 | P196: -7.412690253e-16 | Q196: 5.466738173e-13 | R196: 8.421920938e-10
E197: 1890 | F197: -0.0002068193119 | G197: 0.1758840965 | H197: 4453.10023 | J197: 1890 | K197: -0.0002068193119 | L197: 0.1758840965 | M197: 4453.10023 | O197: -1.171201802e-09 | P197: -7.288278054e-16 | Q197: 5.391798119e-13 | R197: 8.330971468e-10
E198: 1900 | F198: -0.0002040466062 | G198: 0.1738298051 | H198: 4454.848776 | J198: 1900 | K198: -0.0002040466062 | L198: 0.1738298051 | M198: 4454.848776 | O198: -1.180296749e-09 | P198: -7.16630531e-16 | Q198: 5.317690732e-13 | R198: 8.467395674e-10
E199: 1910 | F199: -0.0002013192884 | G199: 0.1718030131 | H199: 4456.576917 | J199: 1910 | K199: -0.0002013192884 | L199: 0.1718030131 | M199: 4456.576917 | O199: -1.189391696e-09 | P199: -7.052464081e-16 | Q199: 5.248856905e-13 | R199: 8.576535038e-10
E200: 1920 | F200: -0.0001986364221 | G200: 0.1698032712 | H200: 4458.284926 | J200: 1920 | K200: -0.0001986364221 | L200: 0.1698032712 | M200: 4458.284926 | O200: -1.198486643e-09 | P200: -6.938080752e-16 | Q200: 5.17919041e-13 | R200: 8.521965356e-10
... 308 more rows

Sheet お問合せ
B2: 技術的なご質問のみお受けします。
C4: sxsijk@Gmail.com | D4: sxsijk@Gmail.com
E120: =C120-C$21 -> 0
E121: =IF(C121<0,C121+360,C121)-IF(C$22<0,C$22+360,C$22) -> 0
E122: =C122-C$23 -> 0
E124: =C124-C$17 -> 0
E125: =C125-C$18 -> 0
E126: =C126-C$19 -> 0
E127: =C127-C$20 -> 0
E128: =C128-C$21 -> 0
E129: =IF(C129<0,C129+360,C129)-IF(C$22<0,C$22+360,C$22) -> 0
E130: =C130-C$23 -> 0
E131: =C131-C$24 -> 0
E132: =C132-C$25 -> 0
E133: =C133-C$26 -> 0
E134: =C134-C$27 -> 0
C137: 35 | E137: =C137-C$17 -> 35
B138: λp | E138: =C138-C$18 -> 0
E139: =C139-C$19 -> 0
C140: =SQRT(((#REF!^2*COS(RADIANS(C137)))^2+(#REF!^2*SIN(RADIANS(C137)))^2)/(#REF!^2*(1-C$4*SIN(RADIANS(C137))^2))) ->  | E140: =C140-C$20 -> 
C141: =DEGREES(C143/C140) ->  | E141: =C141-C$25 -> 
E142: =C142-C$26 -> 0
E143: =C143-C$27 -> 0
E144: =IF(C144<0,C144+360,C144)-IF(C$22<0,C$22+360,C$22) -> 0
E145: =C145-C$23 -> 0
C146: =DEGREES(ATAN2((1-C$4)*COS(RADIANS(C145)),SIN(RADIANS(C145)))) ->  | E146: =C146-C$21 -> 
C147: =SQRT(((#REF!^2*COS(RADIANS(C146)))^2+(#REF!^2*SIN(RADIANS(C146)))^2)/(#REF!^2*(1-C$4*SIN(RADIANS(C146))^2))) ->  | E147: =C147-C$24 -> 
C148: =DEGREES(ACOS(COS(RADIANS(C$139))*COS(RADIANS(C145))*(COS(RADIANS(C$138))*COS(RADIANS(C144))+SIN(RADIANS(C$138))*SIN(RADIANS(C144)))+SIN(RADIANS(C$139))*SIN(RADIANS(C145)))) -> 0 | E148: =C148-C$25 -> 0
C149: =DEGREES(ATAN2(COS(RADIANS(C$139))*SIN(RADIANS(C145))-SIN(RADIANS(C$139))*COS(RADIANS(C145))*COS(RADIANS(C144-C$138)),COS(RADIANS(C145))*SIN(RADIANS(C144-C$138)))) ->  | E149: =C149-C$26 -> 
C150: =SQRT(((C$140-C147)*COS(RADIANS(C148/2)))^2+(MAX(C$140,C147)*RADIANS(C148)-ABS(C$140-C147)*SIN(RADIANS(C148/2)))^2) ->  | E150: =C150-C$27 -> 
A151: 補正 | B151: θ＝θ+(d0-d)/r | C151: =C141+DEGREES((C143-C150)/C147) ->  | E151: =C151-C$25 -> 
C152: =C142 -> 0 | E152: =C152-C$26 -> 0
C153: =C143 -> 0 | E153: =C153-C$27 -> 0
E154: =IF(C154<0,C154+360,C154)-IF(C$22<0,C$22+360,C$22) -> 0
E155: =C155-C$23 -> 0
C156: =DEGREES(ATAN2((1-C$4)*COS(RADIANS(C155)),SIN(RADIANS(C155)))) ->  | E156: =C156-C$21 -> 
C157: =SQRT(((#REF!^2*COS(RADIANS(C156)))^2+(#REF!^2*SIN(RADIANS(C156)))^2)/(#REF!^2*(1-C$4*SIN(RADIANS(C156))^2))) ->  | E157: =C157-C$24 -> 
C158: =DEGREES(ACOS(COS(RADIANS(C$139))*COS(RADIANS(C155))*(COS(RADIANS(C$138))*COS(RADIANS(C154))+SIN(RADIANS(C$138))*SIN(RADIANS(C154)))+SIN(RADIANS(C$139))*SIN(RADIANS(C155)))) -> 0 | E158: =C158-C$25 -> 0
C159: =DEGREES(ATAN2(COS(RADIANS(C$139))*SIN(RADIANS(C155))-SIN(RADIANS(C$139))*COS(RADIANS(C155))*COS(RADIANS(C154-C$138)),COS(RADIANS(C155))*SIN(RADIANS(C154-C$138)))) ->  | E159: =C159-C$26 -> 
C160: =SQRT(((C$140-C157)*COS(RADIANS(C158/2)))^2+(MAX(C$140,C157)*RADIANS(C158)-ABS(C$140-C157)*SIN(RADIANS(C158/2)))^2) ->  | E160: =C160-C$27 -> 
